bitfinex/quotes_ETHUSD_20260209
["timestamp","ask_amount","ask_price","bid_price","bid_amount"]
[1770649083491,4.64091832,2044.3,2043.1,4.89433221]
[1770649083654,4.71444052,2044.3,2043.1,4.89433221]
[1770649084086,7.35025887,2044.3,2043.1,4.89433221]
[1770649084264,0.0735222,2044.0,2043.1,4.89433221]
[1770649084588,7.27673667,2044.3,2043.1,4.89433221]
[1770649084783,0.1024,2044.9,2043.2,2.51572875]
[1770649084977,0.0735222,2044.7,2043.2,2.51572875]
[1770649085179,1.04116259,2044.6,2043.2,2.51572875]
[1770649085373,1.04116259,2044.6,2043.3,1.22351098]
[1770649085374,2.26395252,2044.6,2043.3,1.22351098]
[1770649085577,7.52627218,2044.9,2043.3,1.22351098]
[1770649085578,4.89053748,2044.8,2043.3,3.73923973]
[1770649085775,1.22261345,2044.8,2043.3,3.73923973]
[1770649086178,1.04237075,2044.7,2043.4,2.51572875]
[1770649086493,4.71601789,2045.0,2043.4,2.51572875]
[1770649086990,1.04301153,2044.9,2043.4,2.51572875]
[1770649087179,1.04301153,2044.8,2043.4,2.51572875]
[1770649087386,1.04301153,2044.7,2043.4,2.51572875]
[1770649087588,1.22265664,2044.8,2043.5,1.22339124]
[1770649087779,1.04455481,2044.7,2043.5,1.22339124]
[1770649088091,1.04460553,2044.6,2043.5,1.22339124]
[1770649088298,1.22265664,2044.8,2043.5,1.22339124]
[1770649088498,1.04585307,2044.7,2043.5,3.73911999]
[1770649088694,1.04585307,2044.6,2043.5,3.73911999]
[1770649088898,1.0458777,2044.5,2043.5,1.22339124]
[1770649089214,3.85841409,2044.9,2043.6,10.26]
[1770649089495,0.002,2045.0,2043.9,3.73888056]
[1770649089699,1.04718987,2044.9,2044.0,3.83]
[1770649089898,1.04728106,2044.8,2044.0,3.83]
[1770649090194,0.002,2045.0,2044.0,3.83]
[1770649090395,1.04944997,2044.9,2044.0,6.34572875]
[1770649090598,0.002,2045.2,2043.9,1.22315181]
[1770649090599,0.002,2045.2,2044.2,2.51572875]
[1770649090766,4.63802065,2045.6,2044.2,2.51572875]
[1770649091174,3.4158826,2045.6,2044.2,2.51572875]
[1770649091412,0.0735222,2046.0,2043.8,4.89260727]
[1770649091413,2.63581835,2045.2,2043.8,4.89260727]
[1770649091594,0.0735222,2045.4,2044.0,2.51572875]
[1770649091905,7.07341281,2045.9,2044.0,2.51572875]
[1770649091906,0.0735222,2045.6,2044.0,2.51572875]
[1770649092100,0.0735222,2045.3,2044.0,2.51572875]
[1770649092301,0.0735222,2045.3,2043.9,1.22315181]
[1770649092302,0.0735222,2045.0,2043.9,1.22315181]
[1770649092475,3.5011056,2045.3,2043.9,1.22315181]
[1770649093402,3.5011056,2045.2,2043.9,1.22315181]
[1770649093605,1.22243411,2045.1,2043.9,1.22315181]
[1770649094304,1.22225578,2045.4,2044.0,2.58925095]
[1770649094482,3.5011056,2045.3,2044.0,2.51572875]
[1770649094688,1.22225578,2045.4,2044.0,2.51572875]
[1770649094991,1.22225578,2045.4,2043.9,1.22315181]
[1770649094992,3.5011056,2045.3,2043.9,1.22315181]
[1770649095194,3.5011056,2045.2,2043.9,1.22315181]
[1770649095503,1.22261345,2044.8,2043.3,4.89397976]
[1770649095808,4.64061345,2044.8,2043.3,7.42491826]
[1770649095975,4.64061345,2044.8,2043.4,2.5309385]
[1770649096410,4.64061345,2044.8,2043.5,12.7909385]
[1770649096788,4.64061345,2044.8,2043.6,2.5309385]
[1770649096978,4.64061345,2044.8,2043.7,3.83]
[1770649097178,0.0735222,2044.6,2043.3,4.89397976]
[1770649097414,3.5011056,2044.5,2043.4,2.5309385]
[1770649097598,1.22279285,2044.5,2043.5,1.22339124]
[1770649097907,4.72389845,2044.5,2043.4,1.22340681]
[1770649098681,4.72389845,2044.5,2043.5,0.001]
[1770649098894,0.002,2044.6,2043.5,2.57414766]
[1770649099310,0.002,2044.6,2043.6,2.57314766]
[1770649099605,0.002,2044.6,2043.7,1.22327151]
[1770649099793,0.002,2044.6,2043.7,3.79641917]
[1770649100413,0.002,2044.6,2043.7,1.22327151]
[1770649101615,0.002,2044.6,2043.9,3.79629947]
[1770649102309,0.002,2044.6,2043.9,1.22315181]
[1770649102712,1.05203891,2044.5,2043.9,1.22315181]
[1770649102885,1.05203891,2044.4,2043.9,1.22315181]
[1770649103087,1.22243411,2045.1,2044.0,6.43]
[1770649103412,1.29595631,2045.1,2044.1,10.26]
[1770649103709,1.22267325,2044.7,2044.2,3.83]
[1770649103921,1.22267325,2044.7,2043.8,1.22318274]
[1770649104222,4.64065039,2044.8,2044.0,1.22308067]
[1770649104419,4.64062104,2044.8,2044.0,1.22308067]
[1770649104596,1.22223804,2045.5,2044.1,10.26]
[1770649105602,1.22223804,2045.5,2044.2,1.22297231]
[1770649105804,0.002,2045.7,2044.3,3.4915222]
[1770649106027,0.002,2045.7,2044.3,7.3215222]
[1770649106694,0.002,2045.7,2044.7,2.57314766]
[1770649107722,0.002,2045.7,2044.9,2.57314766]
[1770649108628,0.002,2045.7,2044.8,1.22261345]
[1770649108920,0.0735222,2045.6,2044.7,1.22263142]
[1770649109105,0.0735222,2045.6,2044.7,1.22266424]
[1770649109298,0.0735222,2045.6,2044.7,1.22267149]
[1770649109512,0.0735222,2045.3,2044.6,1.22271448]
[1770649109715,1.22237433,2045.2,2044.4,1.22285267]
[1770649110038,1.22237433,2045.2,2044.3,1.22289178]
[1770649110224,0.0735222,2045.0,2043.5,7.46759921]
[1770649110533,0.0735222,2045.0,2043.6,2.57314766]
[1770649110741,0.0735222,2045.0,2044.1,1.22300987]
[1770649111033,1.22237433,2045.2,2044.2,1.22294137]
[1770649111233,0.0735222,2045.0,2044.2,1.22294137]
[1770649111534,1.22237433,2045.2,2043.8,4.89283755]
[1770649111834,1.22237433,2045.2,2043.5,7.46759921]
[1770649111835,1.22255367,2044.9,2043.6,3.79647903]
[1770649112034,1.22255367,2044.9,2043.9,0.001]
[1770649112235,1.22225481,2045.4,2044.0,2.57314766]
[1770649112611,0.0735222,2045.2,2044.0,2.57314766]
[1770649114027,1.22225481,2045.4,2044.1,1.22303214]
[1770649114223,0.0735222,2045.2,2044.1,1.22303214]
[1770649114414,0.0735222,2044.6,2043.9,0.001]
[1770649114611,3.418,2044.7,2044.0,1.22304342]
[1770649114938,3.418,2044.7,2043.9,0.001]
[1770649115139,3.418,2044.7,2043.9,1.22410993]
[1770649115336,3.418,2044.7,2044.0,1.22307632]
[1770649115526,3.418,2044.7,2043.9,0.001]
[1770649115725,3.418,2044.7,2043.9,1.22415172]
[1770649116109,1.22273305,2044.6,2043.9,0.001]
[1770649116519,8.30893221,2044.7,2043.9,0.001]
[1770649116520,4.64068364,2044.7,2043.9,0.001]
[1770649117148,4.71420584,2044.7,2043.9,0.001]
[1770649117346,0.0735222,2044.4,2043.9,0.001]
[1770649118043,0.0735222,2044.4,2043.7,0.001]
[1770649118044,0.0735222,2044.1,2043.7,0.001]
[1770649118345,4.64109197,2044.0,2043.3,0.001]
[1770649118541,0.0735222,2043.8,2043.3,0.001]
[1770649118732,1.22309197,2044.0,2043.3,0.001]
[1770649119122,4.64095094,2044.3,2043.3,0.001]
[1770649119325,3.418,2044.3,2043.3,2.57414766]
[1770649119744,4.89056524,2044.8,2043.3,2.57414766]
[1770649119943,4.64053628,2045.0,2043.3,2.57414766]
[1770649120265,3.418,2045.0,2043.7,2.57314766]
[1770649120566,4.64051234,2045.0,2043.7,2.57314766]
[1770649120732,3.418,2045.0,2043.7,2.57314766]
[1770649120932,4.64049695,2045.0,2043.7,2.57314766]
[1770649121135,4.64049695,2045.0,2043.5,3.79650539]
[1770649121136,0.0735222,2044.9,2043.5,3.79650539]
[1770649121351,0.0735222,2044.6,2043.5,3.79650539]
[1770649121546,0.0735222,2044.3,2043.5,3.79650539]
[1770649121759,0.0735222,2044.6,2043.5,3.79650539]
[1770649121760,0.0735222,2044.6,2043.5,1.22335773]
[1770649121957,0.5,2044.4,2043.5,1.22335773]
[1770649122139,1.29647786,2044.3,2043.3,0.001]
[1770649122540,4.71447786,2044.3,2043.3,0.001]
[1770649122742,0.0735222,2044.0,2043.3,0.001]
[1770649123554,4.71447786,2044.3,2043.3,0.001]
[1770649123862,0.0735222,2044.0,2043.3,0.001]
[1770649124269,1.22315181,2043.9,2043.3,0.001]
[1770649124636,4.96612947,2044.0,2043.3,0.001]
[1770649124637,0.5,2044.4,2043.3,2.57414766]
[1770649125055,1.22284105,2044.5,2043.3,2.57414766]
[1770649125248,4.71412433,2044.9,2043.3,2.57414766]
[1770649125450,3.418,2044.9,2043.5,2.52357239]
[1770649125638,3.418,2044.9,2043.8,2.52357239]
[1770649126256,3.418,2044.9,2044.0,2.52357239]
[1770649126663,0.25431828,2045.1,2043.8,4.89260727]
[1770649126664,0.0735222,2044.8,2043.8,1.22319495]
[1770649126860,1.47676976,2045.1,2043.8,1.22319495]
[1770649127072,0.25431828,2045.1,2043.8,3.74676734]
[1770649127247,0.25431828,2045.1,2043.9,2.52357239]
[1770649128295,0.25431828,2045.1,2044.1,2.52357239]
[1770649128978,1.47675887,2045.1,2044.1,2.52357239]
[1770649129279,1.47675887,2045.1,2044.0,1.22309197]
[1770649129948,1.47675887,2045.1,2043.8,1.22319076]
[1770649129949,0.0735222,2044.7,2043.8,1.22319076]
[1770649130166,1.22297231,2044.2,2043.3,0.001]
[1770649130380,1.29649451,2044.2,2043.3,0.001]
[1770649130681,0.0735222,2043.9,2043.3,0.001]
[1770649130854,3.418,2043.8,2043.3,0.001]
[1770649131178,3.418,2043.8,2042.8,4.89611273]
[1770649131179,0.0735222,2043.6,2042.8,0.001]
[1770649131374,0.0735222,2043.3,2042.8,0.001]
[1770649131577,0.0735222,2043.6,2042.8,1.22476301]
[1770649131890,0.0735222,2043.6,2042.8,0.001]
[1770649132080,3.418,2043.8,2042.8,0.001]
[1770649132249,0.0735222,2043.6,2042.8,0.001]
[1770649133085,4.99548606,2044.0,2042.8,0.001]
[1770649133086,1.22291248,2044.3,2042.8,2.52457239]
[1770649133266,3.418,2044.5,2042.8,2.52457239]
[1770649133467,4.64082904,2044.5,2042.8,2.52457239]
[1770649134184,0.0735222,2044.3,2042.8,2.52457239]
[1770649134489,1.22297231,2044.2,2042.9,1.22375055]
[1770649135670,3.418,2044.5,2042.9,3.74732294]
[1770649135904,1.22285267,2044.4,2043.0,2.52357239]
[1770649136103,0.0735222,2044.4,2043.1,12.78357239]
[1770649136291,1.22291248,2044.3,2043.2,1.22357086]
[1770649136805,4.64083605,2044.5,2043.2,3.74714325]
[1770649137122,15.49970807,2045.0,2043.4,2.52357239]
[1770649137123,1.29610337,2044.9,2043.4,2.52357239]
[1770649137413,1.29610337,2044.9,2043.4,5.94257239]
[1770649137583,0.0735222,2044.3,2043.4,3.419]
[1770649138340,1.22279285,2044.5,2043.5,1.22339124]
[1770649139925,4.89051833,2044.8,2043.5,3.74696363]
[1770649140218,4.89051833,2044.8,2043.5,3.74085073]
[1770649140721,0.0735222,2044.5,2043.5,1.21727834]
[1770649140902,1.29613565,2044.8,2043.5,1.21727834]
[1770649141098,1.22261345,2044.8,2043.5,3.74185073]
[1770649141299,0.002,2044.3,2043.5,3.74185073]
[1770649141612,0.002,2045.5,2043.9,2.52357239]
[1770649141794,1.2242052,2045.5,2043.9,2.52357239]
[1770649141991,1.2180923,2045.5,2043.9,2.52357239]
[1770649142227,0.002,2045.4,2044.1,0.0735222]
[1770649142426,0.002,2045.4,2044.4,2.52357239]
[1770649142630,0.002,2045.4,2044.5,1.22279285]
[1770649142798,0.002,2045.4,2044.6,2.52357239]
[1770649144608,0.002,2045.4,2044.7,1.22267325]
[1770649144806,0.002,2045.4,2044.6,4.89069301]
[1770649145013,0.0735222,2045.3,2044.6,1.22272474]
[1770649145205,0.0735222,2045.2,2044.1,4.89191379]
[1770649145529,0.0735222,2045.2,2044.5,1.22274055]
[1770649145730,0.002,2045.4,2044.6,1.22273129]
[1770649146825,0.002,2045.4,2044.5,7.41458602]
[1770649147237,0.002,2045.4,2044.6,3.83]
[1770649147238,0.0735222,2045.3,2044.6,3.83]
[1770649147409,0.0735222,2045.3,2044.7,3.83]
[1770649147736,0.002,2045.4,2044.5,3.83]
[1770649148610,0.002,2045.4,2044.7,1.22267325]
[1770649148813,0.002,2045.4,2042.9,4.89481946]
[1770649148814,0.0735222,2043.9,2042.9,4.89481946]
[1770649149032,0.0735222,2044.4,2042.8,2.61074079]
[1770649149323,0.0735222,2044.4,2043.5,1.22438889]
[1770649149527,3.418,2044.3,2043.5,0.001]
[1770649149731,1.04740671,2044.2,2043.5,1.22437739]
[1770649149945,1.04740671,2044.1,2043.5,0.001]
[1770649150131,3.418,2044.3,2043.5,0.001]
[1770649150132,1.04740671,2044.0,2043.5,0.001]
[1770649150333,1.04740671,2043.9,2043.5,0.001]
[1770649150516,0.0735222,2044.5,2043.5,1.2243858]
[1770649150720,1.22291248,2044.3,2043.5,0.001]
[1770649150921,1.04722467,2044.2,2043.5,0.001]
[1770649151224,1.04722467,2044.1,2043.5,0.001]
[1770649151433,1.04722467,2044.0,2043.5,0.001]
[1770649151745,1.04722467,2043.9,2043.5,0.001]
[1770649151915,1.22291248,2044.3,2043.5,0.001]
[1770649152116,1.04725834,2044.2,2043.5,0.001]
[1770649152345,1.04725834,2044.1,2043.5,0.001]
[1770649152542,1.04725834,2044.0,2043.5,0.001]
[1770649152749,2.27041189,2043.9,2043.5,0.001]
[1770649153049,1.04725834,2043.8,2043.5,0.001]
[1770649153221,1.22312677,2044.0,2043.5,0.001]
[1770649153415,1.04736339,2043.9,2043.5,0.001]
[1770649153618,1.04736339,2043.8,2043.7,0.001]
[1770649153964,4.89094773,2044.6,2043.7,0.001]
[1770649154117,3.418,2044.3,2043.7,0.001]
[1770649154317,4.89094773,2044.6,2043.7,0.001]
[1770649154546,3.418,2044.5,2043.7,0.001]
[1770649154760,4.78743158,2045.0,2043.7,0.001]
[1770649154970,3.49135571,2045.2,2043.7,2.61074079]
[1770649155126,3.418,2045.1,2043.7,2.61074079]
[1770649156138,4.88953197,2045.2,2043.7,2.61074079]
[1770649156342,1.22237433,2045.2,2043.7,2.61074079]
[1770649156769,0.002,2045.3,2043.9,2.60974079]
[1770649158547,0.0735222,2045.2,2043.9,2.60974079]
[1770649158734,1.22243411,2045.1,2044.0,1.22309197]
[1770649158936,1.22243411,2045.1,2044.1,3.83]
[1770649159350,0.0735222,2044.9,2044.1,3.83]
[1770649159854,3.4915222,2044.8,2043.9,1.22313837]
[1770649160063,1.22243411,2045.1,2043.9,1.22315122]
[1770649160064,3.4915222,2045.0,2043.9,1.22315122]
[1770649160232,0.0735222,2044.7,2043.9,1.22314459]
[1770649160642,3.4915222,2045.0,2043.9,1.22314819]
[1770649160842,1.22273305,2044.6,2043.8,4.89272837]
[1770649161748,1.22273305,2044.6,2043.8,1.22321166]
[1770649163060,1.22255367,2044.9,2043.8,1.22321166]
[1770649163246,1.22255367,2044.9,2043.9,2.7189396]
[1770649163857,0.0735222,2044.7,2043.8,1.22321166]
[1770649164059,1.22255367,2044.9,2043.8,3.94215126]
[1770649164656,0.002,2045.3,2044.2,2.7189396]
[1770649165175,0.002,2045.7,2044.6,2.7189396]
[1770649165469,0.002,2045.7,2044.7,2.7189396]
[1770649166441,1.04756216,2045.6,2044.7,2.7189396]
[1770649166642,0.002,2045.7,2044.7,2.7189396]
[1770649166949,1.0475933,2045.6,2044.7,2.7189396]
[1770649167160,1.22225481,2045.4,2044.8,1.22261345]
[1770649167344,1.04748741,2045.3,2044.7,1.22266257]
[1770649167535,1.22225481,2045.4,2044.7,1.22266257]
[1770649167536,1.04748741,2045.2,2044.7,1.22266257]
[1770649167737,0.002,2045.1,2044.7,1.22266257]
[1770649167945,0.002,2045.1,2044.7,1.22266591]
[1770649169050,0.002,2045.1,2044.8,2.7189396]
[1770649169257,0.002,2045.1,2044.9,1.22255367]
[1770649170343,0.002,2045.3,2044.9,1.22255367]
[1770649170664,0.002,2045.3,2044.9,5.05255367]
[1770649171956,0.002,2045.3,2045.0,3.83]
[1770649173075,0.002,2045.3,2045.1,3.83]
[1770649173277,0.002,2045.3,2045.2,1.22237433]
[1770649173474,0.002,2045.3,2045.1,1.22238732]
[1770649173645,0.002,2045.3,2045.0,3.83]
[1770649173850,0.002,2045.3,2045.1,1.22243155]
[1770649174278,0.002,2045.3,2045.0,3.83]
[1770649174855,0.002,2045.7,2045.0,3.83]
[1770649175159,1.0470131,2045.6,2045.1,1.2224289]
[1770649175478,2.34275731,2045.5,2044.4,3.83]
[1770649175654,1.0470131,2045.4,2044.6,1.22271006]
[1770649175848,1.0470131,2045.3,2044.6,1.22271006]
[1770649176046,1.0470131,2045.2,2044.3,3.83]
[1770649176245,1.1205353,2045.1,2044.3,1.22288331]
[1770649176591,3.417,2045.3,2044.6,1.22268506]
[1770649176592,1.0470131,2045.0,2044.6,1.22268506]
[1770649176778,1.0470131,2044.9,2044.4,1.22281298]
[1770649176981,3.417,2045.3,2044.0,0.001]
[1770649176982,1.0470131,2044.8,2044.0,0.001]
[1770649177275,0.0735222,2045.2,2044.0,4.89323672]
[1770649177276,1.04739625,2044.7,2044.0,4.89323672]
[1770649177573,1.22243411,2045.1,2044.0,4.89323672]
[1770649177792,1.04745232,2045.0,2044.0,4.89323672]
[1770649178078,1.04745232,2044.9,2044.1,2.81593365]
[1770649178257,1.22238857,2045.2,2044.1,2.81593365]
[1770649178576,1.04737103,2045.1,2044.1,2.81593365]
[1770649178875,1.22238857,2045.2,2044.1,2.81593365]
[1770649179079,4.63934855,2045.3,2044.1,2.81593365]
[1770649179278,4.71287075,2045.3,2044.2,1.22297231]
[1770649179787,4.63934855,2045.3,2044.2,4.03890596]
[1770649180781,0.0735222,2045.1,2044.1,1.22302708]
[1770649180983,4.63934855,2045.3,2044.2,2.81593365]
[1770649181349,0.0735222,2045.1,2044.4,0.001]
[1770649181557,0.002,2045.1,2044.4,0.001]
[1770649182854,0.0735222,2045.0,2044.5,3.83]
[1770649183071,3.419,2045.1,2044.5,3.83]
[1770649183395,0.002,2045.1,2044.7,1.22267325]
[1770649183555,0.002,2045.1,2044.6,4.03862589]
[1770649183751,1.22407926,2045.7,2044.7,2.81593365]
[1770649184292,1.22409786,2045.7,2044.7,2.81593365]
[1770649184800,1.22408075,2045.7,2044.7,2.81593365]
[1770649185591,0.002,2045.7,2044.9,2.77532327]
[1770649186500,0.002,2045.7,2044.8,1.22261345]
[1770649186873,0.002,2045.7,2044.4,1.22382278]
[1770649186874,0.0735222,2045.5,2044.4,1.22382278]
[1770649187078,0.0735222,2045.5,2044.6,1.22272889]
[1770649187079,3.417,2045.4,2044.6,1.22272889]
[1770649187277,3.417,2045.4,2044.7,1.22266802]
[1770649187497,1.22231457,2045.3,2044.5,3.99811612]
[1770649187804,1.22231457,2045.3,2044.4,4.89217143]
[1770649187805,1.22231457,2045.3,2044.4,1.22381574]
[1770649189006,4.89075924,2045.7,2044.4,1.22381574]
[1770649189007,1.22409559,2045.7,2044.6,2.77532327]
[1770649189389,0.002,2045.7,2044.7,1.22267325]
[1770649189897,0.002,2045.7,2044.7,3.99799652]
[1770649190108,0.002,2045.7,2044.8,2.77532327]
[1770649190283,0.002,2045.7,2045.0,2.77532327]
[1770649190486,0.002,2045.7,2045.2,2.77532327]
[1770649191379,0.002,2045.7,2045.1,3.83]
[1770649191579,0.002,2045.7,2045.1,5.05239837]
[1770649191781,0.002,2045.7,2045.1,5.05243154]
[1770649191999,0.002,2045.7,2044.9,3.83]
[1770649192302,0.002,2045.7,2045.0,1.22248743]
[1770649192496,0.002,2045.7,2044.9,3.83]
[1770649193010,0.002,2045.7,2044.8,3.99789237]
[1770649193301,0.002,2045.7,2045.1,1.22242468]
[1770649193504,0.002,2045.7,2045.1,3.99774795]
[1770649194293,8.30658553,2046.1,2045.2,2.77532327]
[1770649194294,1.22383996,2046.1,2045.2,2.77532327]
[1770649194612,1.22383793,2046.1,2045.2,2.77532327]
[1770649194810,0.002,2045.5,2045.2,2.77532327]
[1770649195006,1.22383793,2046.1,2045.2,2.77532327]
[1770649195413,1.22383793,2046.1,2045.3,6.60532327]
[1770649195909,1.22383793,2046.1,2045.4,7.82757808]
[1770649195910,0.002,2046.1,2045.4,7.82757808]
[1770649196115,0.002,2046.1,2045.5,6.60532327]
[1770649196408,0.002,2046.1,2045.4,7.65225481]
[1770649196409,0.002,2046.1,2045.6,2.77532327]
[1770649196906,0.002,2046.1,2045.3,1.22227357]
[1770649197507,0.002,2046.1,2045.2,2.77532327]
[1770649197809,3.4905222,2046.0,2045.2,2.77532327]
[1770649198108,1.2219561,2045.9,2045.2,1.22237261]
[1770649198314,1.2219561,2045.9,2045.1,1.22239253]
[1770649198514,1.2219561,2045.9,2045.0,1.22243805]
[1770649198815,0.0735222,2045.7,2044.8,0.001]
[1770649199108,0.0735222,2045.4,2044.8,0.001]
[1770649199313,0.0735222,2045.7,2044.8,0.001]
[1770649199489,0.0735222,2045.4,2044.8,0.001]
[1770649199694,1.2219561,2045.9,2044.8,0.001]
[1770649199883,1.22207557,2045.7,2044.8,0.001]
[1770649200089,1.21597523,2045.7,2044.8,0.001]
[1770649200413,4.63197523,2045.7,2044.8,2.77632327]
[1770649200715,0.002,2046.1,2044.9,2.77532327]
[1770649201218,1.22134299,2047.0,2046.1,2.77532327]
[1770649201417,16.09740095,2048.1,2046.3,2.77532327]
[1770649201585,1.22076273,2048.0,2046.5,0.0735222]
[1770649201792,4.88205078,2048.4,2046.9,2.77532327]
[1770649202000,1.22046475,2048.5,2047.1,2.84884547]
[1770649202212,6.08130006,2049.0,2047.1,2.84884547]
[1770649202213,4.88043189,2049.0,2047.1,2.84884547]
[1770649202409,16.80164682,2049.1,2047.5,2.77532327]
[1770649202410,4.88037084,2049.1,2047.5,2.77532327]
[1770649202900,1.21975019,2049.7,2048.2,2.77532327]
[1770649203210,1.21931476,2050.4,2048.9,2.77532327]
[1770649203419,1.29283696,2050.4,2049.1,2.77532327]
[1770649203622,1.29283696,2050.4,2048.5,10.49318195]
[1770649203623,0.0735222,2050.0,2048.3,2.77532327]
[1770649203932,1.21992875,2049.3,2048.3,2.77532327]
[1770649204106,0.0735222,2049.1,2047.8,2.77532327]
[1770649204311,0.0735222,2048.8,2047.8,2.77532327]
[1770649204527,4.63592875,2049.3,2048.3,1.22050595]
[1770649204708,4.63592875,2049.3,2048.1,2.77532327]
[1770649204709,0.0735222,2049.6,2048.5,2.77532327]
[1770649204907,0.0735222,2049.0,2048.1,2.77532327]
[1770649205228,0.0735222,2049.0,2047.3,4.88427449]
[1770649205229,0.0735222,2048.7,2047.6,2.77532327]
[1770649205428,0.0735222,2048.4,2047.6,2.77532327]
[1770649205629,3.415,2049.1,2047.8,4.88308569]
[1770649205956,4.95418987,2049.0,2047.9,2.77532327]
[1770649206104,1.22016691,2048.9,2047.9,2.77532327]
[1770649206299,1.22016691,2048.9,2047.9,3.99607294]
[1770649206525,1.22016691,2048.9,2047.9,3.99606615]
[1770649206807,1.22016691,2048.9,2047.9,1.22075631]
[1770649207028,1.22016691,2048.9,2047.8,2.77532327]
[1770649207235,1.22016691,2048.9,2047.9,1.22075846]
[1770649207538,1.22016691,2048.9,2047.9,3.99607211]
[1770649207711,0.002,2048.7,2048.0,2.77532327]
[1770649208208,0.002,2048.7,2047.6,2.77532327]
[1770649208729,0.002,2048.7,2048.0,1.22068128]
[1770649208926,0.002,2048.7,2048.1,2.77532327]
[1770649209132,1.2198097,2049.5,2048.5,2.77532327]
[1770649209332,0.0735222,2049.3,2048.5,2.77532327]
[1770649209529,0.0735222,2049.3,2048.0,3.99600455]
[1770649209756,1.2198097,2049.5,2048.1,2.77532327]
[1770649210055,1.21969068,2049.7,2048.3,2.77532327]
[1770649210243,4.88069068,2049.8,2048.5,2.77532327]
[1770649210662,0.002,2049.8,2048.5,2.77532327]
[1770649210957,0.0735222,2049.3,2048.0,2.77532327]
[1770649211163,0.0735222,2049.3,2048.3,3.9958406]
[1770649211363,0.0735222,2049.6,2048.3,2.77532327]
[1770649211656,0.0735222,2049.2,2048.3,2.77532327]
[1770649211862,0.002,2049.8,2048.4,2.77532327]
[1770649212248,0.002,2049.8,2048.5,1.22040517]
[1770649212446,0.002,2049.8,2048.6,2.77532327]
[1770649212647,0.002,2049.8,2048.7,2.77532327]
[1770649214436,0.002,2049.8,2048.9,2.77532327]
[1770649215039,0.002,2049.8,2048.9,3.412]
[1770649215243,0.002,2049.8,2049.0,2.77532327]
[1770649215650,0.002,2049.8,2048.5,2.80777329]
[1770649215651,0.0735222,2049.7,2048.5,2.80777329]
[1770649215851,0.0735222,2049.1,2047.8,2.80777329]
[1770649216050,0.0735222,2048.8,2047.8,2.80777329]
[1770649216234,0.0735222,2048.8,2047.8,4.02859468]
[1770649216431,1.21998828,2049.2,2047.8,4.02855084]
[1770649216678,1.21998828,2049.2,2047.9,2.80777329]
[1770649216977,0.0735222,2048.7,2047.5,4.88381806]
[1770649217278,0.0735222,2049.0,2047.8,1.22082023]
[1770649217451,0.0735222,2049.0,2047.8,4.02859352]
[1770649218051,1.21998828,2049.2,2047.9,2.80777329]
[1770649218567,4.87933291,2049.5,2048.1,2.80777329]
[1770649218769,4.87933291,2049.5,2048.2,2.80777329]
[1770649219976,0.002,2049.8,2049.1,2.92365903]
[1770649220173,0.002,2049.8,2049.2,2.92365903]
[1770649220553,0.002,2049.8,2049.4,2.92365903]
[1770649221157,0.002,2049.8,2049.2,1.2199798]
[1770649221347,0.003,2050.5,2049.3,2.92365903]
[1770649221988,0.0735222,2050.3,2049.0,1.22007991]
[1770649222143,0.002,2049.9,2049.1,1.21999493]
[1770649222352,0.0735222,2049.8,2049.0,2.92365903]
[1770649222580,1.21969068,2049.7,2048.5,4.1440166]
[1770649222784,1.21969068,2049.7,2048.0,4.88235293]
[1770649222785,0.0735222,2049.2,2048.0,2.92365903]
[1770649222986,0.0735222,2049.2,2048.1,1.22064261]
[1770649223283,0.0735222,2049.2,2048.0,2.92365903]
[1770649223452,0.0735222,2049.2,2047.5,4.1446349]
[1770649223453,0.0735222,2048.6,2047.5,4.1446349]
[1770649223648,0.0735222,2048.6,2047.6,1.22094054]
[1770649223869,0.0735222,2048.6,2047.5,2.92365903]
[1770649224070,10.59558195,2049.1,2047.5,4.88390072]
[1770649224284,0.75902816,2049.6,2047.8,2.92365903]
[1770649224285,10.49318195,2049.6,2047.8,2.92365903]
[1770649224452,10.49318195,2049.6,2047.5,4.88381406]
[1770649224453,1.21986923,2049.4,2048.2,4.88214587]
[1770649224654,0.0735222,2049.2,2048.2,2.92365903]
[1770649224955,1.21986923,2049.4,2048.2,2.92365903]
[1770649225187,4.87923883,2049.7,2048.2,2.92365903]
[1770649225876,4.87854779,2049.8,2048.2,2.92365903]
[1770649226587,1.22163118,2049.9,2048.5,2.92365903]
[1770649226588,0.002,2049.9,2048.5,2.92365903]
[1770649228393,0.0735222,2049.8,2048.5,2.92365903]
[1770649228551,1.21969068,2049.7,2048.5,4.14406207]
[1770649229177,1.21967517,2049.8,2048.6,2.92365903]
[1770649230270,0.0735222,2049.6,2048.6,2.92365903]
[1770649230489,0.0735222,2049.3,2048.6,2.92365903]
[1770649230788,1.2198097,2049.5,2048.1,2.92365903]
[1770649230987,1.2198097,2049.5,2048.5,1.22039542]
[1770649231190,1.2198097,2049.5,2048.4,1.22046232]
[1770649231491,1.04630546,2049.4,2048.3,2.92365903]
[1770649231663,1.04630546,2049.3,2048.6,1.22031989]
[1770649231867,1.2198097,2049.5,2048.6,4.14397892]
[1770649231868,1.04630546,2049.2,2048.6,4.14397892]
[1770649232075,1.04630546,2049.1,2048.6,2.92365903]
[1770649232291,1.04630546,2049.0,2048.6,1.22033373]
[1770649232463,4.87854964,2049.8,2048.5,2.92365903]
[1770649232862,1.22161879,2049.9,2048.6,2.92365903]
[1770649233469,0.0735222,2049.7,2048.6,2.92365903]
[1770649233797,1.22161879,2049.9,2048.6,2.92365903]
[1770649234367,1.22161879,2049.9,2048.8,0.001]
[1770649234802,0.002,2049.9,2048.8,2.92465903]
[1770649235108,0.0755222,2049.9,2048.8,2.92465903]
[1770649235269,0.0735222,2049.6,2048.8,0.001]
[1770649235675,0.1779222,2049.9,2048.8,0.001]
[1770649236602,0.0755222,2049.9,2048.8,2.92465903]
[1770649237100,1.21963118,2049.8,2048.9,1.22016691]
[1770649237309,1.21963118,2049.8,2049.0,2.92365903]
[1770649237891,1.22158463,2049.9,2049.0,2.92365903]
[1770649238080,0.002,2049.9,2049.0,2.92365903]
[1770649238897,0.002,2049.9,2049.1,1.22004782]
[1770649239290,0.002,2049.9,2049.2,2.92365903]
[1770649239698,0.002,2049.9,2049.0,1.22007879]
[1770649240715,0.002,2049.9,2049.0,4.14373782]
[1770649240878,0.002,2049.9,2049.1,2.92365903]
[1770649241081,0.002,2049.9,2049.3,2.92365903]